fUST/lending_fUST_20240128
["ID","MTS","AMOUNT","RATE_DAILY","PERIOD"]
[312889183,1706415049382,-500.0,0.00027396,2]
[312889184,1706415049391,-280.0,0.00027396,2]
[312889185,1706415049400,-500.0,0.00027396,2]
[312889186,1706415049410,-500.0,0.00027396,2]
[312889187,1706415049419,-438.90481848,0.00027396,2]
[312889188,1706415049429,-500.0,0.00027396,2]
[312889189,1706415049438,-500.0,0.00027396,2]
[312889190,1706415049447,-401.91608929,0.00027396,2]
[312889191,1706415049456,-1774.09643899,0.00027396,2]
[312889192,1706415049465,-177.26733801,0.00027397,2]
[312889193,1706415049474,-500.0,0.00027397,2]
[312889194,1706415049483,-500.0,0.00027397,2]
[312889195,1706415049492,-509.28956681,0.00027397,2]
[312889196,1706415049501,-127.26341893,0.00027397,2]
[312889317,1706416240633,-303.81437787,0.0002116,2]
[312889319,1706416240642,-639.21141232,0.00021161,2]
[312889320,1706416240652,-155.07753877,0.00021161,4]
[312889323,1706416240661,-1774.09643899,0.00021162,2]
[312889324,1706416240670,-453.28196782,0.00021163,2]
[312889325,1706416240679,-156.23927426,0.00021194,2]
[312889326,1706416240688,-250.0,0.00021752,2]
[312889327,1706416240697,-176.740816,0.00021835,2]
[312889328,1706416240707,-15070.0424687,0.00022271,2]
[312889329,1706416240716,-1417.01955965,0.00023,2]
[312889330,1706416240725,-166.666666,0.00024231,2]
[312889331,1706416240734,-166.666666,0.00024809,2]
[312889333,1706416240744,-4729.25513018,0.00025,2]
[312889335,1706416240754,-3898.72788952,0.00025,2]
[312889555,1706417433477,-303.81437787,0.00022281,2]
[312889556,1706417433487,-155.07598723,0.00022282,4]
[312889557,1706417433497,-1774.09643899,0.00022283,2]
[312889558,1706417433506,-166.666666,0.00022289,2]
[312889559,1706417433516,-173.317516,0.00022487,2]
[312889560,1706417433525,-166.666666,0.00022897,2]
[312889561,1706417433534,-712.16906006,0.000229,2]
[312889562,1706417433543,-1417.01955965,0.00023,2]
[312889563,1706417433552,-169.991462,0.00023457,2]
[312889564,1706417433561,-166.666666,0.00023504,2]
[312889565,1706417433570,-7910.71386206,0.00024024,2]
[312889592,1706417438730,-2204.50374427,0.00024024,2]
[312889598,1706417438786,-2418.66496132,0.00024024,2]
[312889600,1706417438797,-565.90470413,0.00024024,2]
[312889855,1706417442926,-20.97422082,0.00024024,2]
[312889856,1706417442936,-166.666666,0.00024112,2]
[312889857,1706417442946,-166.666666,0.0002472,2]
[312889858,1706417442955,-300.0,0.00025,2]
[312889859,1706417442964,-155.07598723,0.00025,2]
[312889860,1706417442973,-1719.27140537,0.00025,2]
[312890051,1706418631971,-303.81437787,0.00022852,2]
[312890053,1706418631980,-1572.68104912,0.00022853,2]
[312890055,1706418631992,-201.41538987,0.00022853,2]
[312890057,1706418632001,-1856.25502519,0.00022854,2]
[312890059,1706418632010,-155.07133281,0.00022854,4]
[312890061,1706418632020,-3350.65164178,0.00022855,2]
[312890165,1706418644205,-1863.37149847,0.00022855,2]
[312890166,1706418644215,-474.77937337,0.000229,2]
[312890167,1706418644225,-199.631622,0.00024459,2]
[312890168,1706418644234,-169.991462,0.00024734,2]
[312890169,1706418644243,-269.755107,0.00024828,2]
[312890170,1706418644253,-108.79459383,0.00025,2]
[312890171,1706418644263,-300.0,0.00025,2]
[312890173,1706418644272,-155.07598723,0.00025,2]
[312890175,1706418644281,-155.07598723,0.00025,2]
[312890177,1706418644290,-1932.83038585,0.00025,2]
[312890201,1706418648349,-720.75067691,0.00025,2]
[312890270,1706419833691,-155.05271792,0.00022856,4]
[312890272,1706419833701,-212.4729628,0.00022856,2]
[312890335,1706419838261,-5001.55017745,0.00022856,2]
[312890336,1706419838271,-1856.25502519,0.00022857,2]
[312890338,1706419838281,-303.81437787,0.00022857,2]
[312890340,1706419838294,-672.60411228,0.000229,2]
[312890341,1706419838303,-199.631622,0.00023244,2]
[312890342,1706419838312,-499.00501624,0.0002496,5]
[312890343,1706419838322,-156.90133828,0.00025,2]
[312890345,1706419838331,-1833.00780661,0.00025,2]
[312890346,1706419838339,-209.4513334,0.00025,2]
[312890348,1706419838348,-1673.96419869,0.00025,2]
[312890350,1706419838357,-7652.00570539,0.00025,2]
[312890351,1706419838366,-159.47121566,0.00025423,2]
[312890352,1706419838375,-169.37880226,0.00025433,2]
[312890353,1706419838384,-200.0,0.00025479,2]
[312890354,1706419838393,-4729.25513018,0.00025499,2]
[312890355,1706419838402,-403.3122045,0.000255,2]
[312890356,1706419838411,-153.0,0.000255,2]
[312890357,1706419838419,-199.397808,0.000255,2]
[312890358,1706419838429,-153.0,0.000255,2]
[312890359,1706419838437,-7247.18,0.00025513,3]
[312890360,1706419838446,-6039.32,0.00025513,3]
[312890361,1706419838455,-5032.76,0.00025513,3]
[312890362,1706419838464,-151.0,0.00025523,2]
[312890363,1706419838473,-151.0,0.00025523,2]
[312890364,1706419838482,-245.0,0.00025523,2]
[312890365,1706419838491,-10000.0,0.00025523,2]
[312890366,1706419838500,-10000.0,0.00025523,2]
[312890367,1706419838511,-10000.0,0.00025523,2]
[312890368,1706419838521,-10000.0,0.00025523,2]
[312890369,1706419838530,-10000.0,0.00025523,2]
[312890370,1706419838539,-10000.0,0.00025523,2]
[312890371,1706419838548,-701.524239,0.00025523,2]
[312890372,1706419838557,-701.524239,0.00025523,2]
[312890374,1706419838567,-701.524239,0.00025523,2]
[312890376,1706419838576,-701.524239,0.00025523,2]
[312890377,1706419838584,-701.524239,0.00025523,2]
[312890378,1706419838593,-701.524239,0.00025523,2]
[312890379,1706419838604,-701.524239,0.00025523,2]
[312890380,1706419838614,-701.524239,0.00025523,2]
[312890381,1706419838625,-701.524239,0.00025523,2]
[312890382,1706419838635,-701.524239,0.00025523,2]
[312890383,1706419838644,-701.524239,0.00025523,2]
[312890384,1706419838653,-701.524239,0.00025523,2]
[312890385,1706419838663,-156.20898937,0.00025532,2]
[312890386,1706419838673,-151.0,0.00025533,2]
[312890387,1706419838683,-151.0,0.00025533,2]
[312890388,1706419838693,-151.0,0.00025533,2]
[312890389,1706419838702,-151.0,0.00025533,2]
[312890390,1706419838711,-167.017897,0.00025533,2]
[312890391,1706419838720,-167.017897,0.00025533,2]
[312890392,1706419838730,-167.017897,0.00025533,2]
[312890393,1706419838739,-167.017897,0.00025533,2]
[312890394,1706419838748,-167.017897,0.00025533,2]
[312890395,1706419838758,-167.017897,0.00025533,2]
[312890396,1706419838767,-4108.892381,0.00025533,2]
[312890397,1706419838776,-4108.892381,0.00025533,2]
[312890398,1706419838785,-4108.892381,0.00025533,2]
[312890399,1706419838795,-4108.892381,0.00025533,2]
[312890400,1706419838804,-4108.892381,0.00025533,2]
[312890401,1706419838813,-4108.892381,0.00025533,2]
[312890402,1706419838822,-4108.892381,0.00025533,2]
[312890403,1706419838831,-4108.892381,0.00025533,2]
[312890404,1706419838840,-4108.892381,0.00025533,2]
[312890405,1706419838849,-4108.892381,0.00025533,2]
[312890406,1706419838859,-4108.892381,0.00025533,2]
[312890407,1706419838868,-4108.892381,0.00025533,2]
[312890408,1706419838878,-4108.892381,0.00025533,2]
[312890409,1706419838887,-4108.892381,0.00025533,2]
[312890410,1706419838896,-4108.892381,0.00025533,2]
[312890411,1706419838905,-4108.892381,0.00025533,2]
[312890412,1706419838914,-4108.892381,0.00025533,2]
[312890413,1706419838924,-4108.892381,0.00025533,2]
[312890414,1706419838934,-151.0,0.00025533,2]
[312890415,1706419838943,-151.0,0.00025533,2]
[312890416,1706419838952,-151.0,0.00025533,2]
[312890417,1706419838961,-151.0,0.00025533,2]
[312890418,1706419838970,-151.0,0.00025533,2]
[312890419,1706419838980,-151.0,0.00025533,2]
[312890420,1706419838989,-151.0,0.00025533,2]
[312890421,1706419838998,-151.0,0.00025533,2]
[312890422,1706419839007,-151.0,0.00025533,2]
[312890423,1706419839016,-151.0,0.00025533,2]
[312890424,1706419839026,-284.370757,0.00025533,2]
[312890425,1706419839035,-151.0,0.00025533,2]
[312890426,1706419839044,-151.0,0.00025533,2]
[312890427,1706419839053,-151.0,0.00025533,2]
[312890428,1706419839062,-151.0,0.00025533,2]
[312890429,1706419839072,-151.0,0.00025533,2]
[312890430,1706419839081,-151.0,0.00025533,2]
[312890431,1706419839092,-151.0,0.00025533,2]
[312890432,1706419839101,-151.0,0.00025533,2]
[312890433,1706419839110,-10000.0,0.00025533,2]
[312890434,1706419839119,-10000.0,0.00025533,2]
[312890435,1706419839129,-10000.0,0.00025533,2]
[312890436,1706419839138,-10000.0,0.00025533,2]
[312890437,1706419839148,-10000.0,0.00025533,2]
[312890438,1706419839157,-10000.0,0.00025533,2]
[312890439,1706419839166,-10000.0,0.00025533,2]
[312890440,1706419839175,-10000.0,0.00025533,2]
[312890441,1706419839185,-10000.0,0.00025533,2]
[312890442,1706419839194,-10000.0,0.00025533,2]
[312890443,1706419839203,-10000.0,0.00025533,2]
[312890444,1706419839213,-10000.0,0.00025533,2]
[312890445,1706419839222,-10000.0,0.00025533,2]
[312890446,1706419839231,-10000.0,0.00025533,2]
[312890447,1706419839240,-10000.0,0.00025533,2]
[312890448,1706419839249,-10000.0,0.00025533,2]
[312890449,1706419839259,-10000.0,0.00025533,2]
[312890450,1706419839268,-10000.0,0.00025533,2]
[312890451,1706419839278,-2436.336682,0.00025533,2]
[312890452,1706419839292,-701.524239,0.00025533,2]
[312890453,1706419839301,-701.524239,0.00025533,2]
[312890454,1706419839310,-701.524239,0.00025533,2]
[312890455,1706419839320,-701.524239,0.00025533,2]
[312890456,1706419839330,-701.524239,0.00025533,2]
[312890457,1706419839339,-701.524239,0.00025533,2]
[312890458,1706419839350,-701.524239,0.00025533,2]
[312890459,1706419839360,-701.524231,0.00025533,2]
[312890460,1706419839372,-151.0,0.00025543,2]
[312890461,1706419839382,-151.0,0.00025543,2]
[312890462,1706419839391,-151.0,0.00025543,2]
[312890463,1706419839401,-151.0,0.00025543,2]
[312890464,1706419839411,-151.0,0.00025543,2]
[312890465,1706419839421,-151.0,0.00025543,2]
[312890466,1706419839431,-151.0,0.00025543,2]
[312890467,1706419839440,-151.0,0.00025543,2]
[312890468,1706419839450,-151.0,0.00025543,2]
[312890469,1706419839459,-151.0,0.00025543,2]
[312890470,1706419839469,-259.166815,0.00025543,2]
[312890471,1706419839478,-167.017897,0.00025543,2]
[312890472,1706419839488,-167.017897,0.00025543,2]
[312890473,1706419839498,-167.017897,0.00025543,2]
[312890474,1706419839506,-167.017897,0.00025543,2]
[312890475,1706419839517,-167.017897,0.00025543,2]
[312890476,1706419839528,-167.017897,0.00025543,2]
[312890477,1706419839537,-167.017897,0.00025543,2]
[312890478,1706419839547,-167.017897,0.00025543,2]
[312890479,1706419839557,-167.017897,0.00025543,2]
[312890480,1706419839566,-167.017897,0.00025543,2]
[312890481,1706419839576,-167.017897,0.00025543,2]
[312890482,1706419839585,-167.017897,0.00025543,2]
[312890483,1706419839594,-167.017897,0.00025543,2]
[312890485,1706419839603,-167.017897,0.00025543,2]
[312890486,1706419839613,-4108.892381,0.00025543,2]
[312890487,1706419839624,-4108.892389,0.00025543,2]
[312890488,1706419839635,-151.0,0.00025543,2]
[312890489,1706419839649,-154.777918,0.00025553,2]
[312890490,1706419839692,-152.312069,0.00025553,2]
[312890491,1706419839701,-152.312069,0.00025553,2]
[312890492,1706419839711,-152.312069,0.00025553,2]
[312890493,1706419839720,-152.312069,0.00025553,2]
[312890494,1706419839730,-152.312069,0.00025553,2]
[312890495,1706419839739,-152.312069,0.00025553,2]
[312890496,1706419839748,-152.312069,0.00025553,2]
[312890497,1706419839757,-152.312069,0.00025553,2]
[312890498,1706419839767,-152.312069,0.00025553,2]
[312890499,1706419839777,-152.312069,0.00025553,2]
[312890500,1706419839786,-152.312069,0.00025553,2]
[312890501,1706419839795,-152.312069,0.00025553,2]
[312890502,1706419839805,-152.312069,0.00025553,2]
[312890503,1706419839815,-152.312069,0.00025553,2]
[312890504,1706419839826,-152.312069,0.00025553,2]
[312890505,1706419839835,-152.312069,0.00025553,2]
[312890506,1706419839844,-152.312069,0.00025553,2]
[312890507,1706419839853,-152.312069,0.00025553,2]
[312890508,1706419839862,-152.312069,0.00025553,2]
[312890509,1706419839871,-152.312069,0.00025553,2]
[312890510,1706419839880,-151.0,0.00025553,2]
[312890511,1706419839889,-151.0,0.00025553,2]
[312890512,1706419839978,-151.0,0.00025553,2]
[312890513,1706419839987,-151.0,0.00025553,2]
[312890514,1706419839997,-151.0,0.00025553,2]
[312890515,1706419840006,-205.888878,0.00025553,2]
[312890516,1706419840016,-152.035045,0.00025563,2]
[312890517,1706419840026,-151.0,0.00025563,2]
[312890518,1706419840036,-151.0,0.00025563,2]
[312890519,1706419840045,-151.0,0.00025563,2]
[312890520,1706419840056,-151.0,0.00025563,2]
[312890521,1706419840066,-212.272603,0.00025563,2]
[312890522,1706419840075,-212.272603,0.00025563,2]
[312890523,1706419840085,-212.272603,0.00025563,2]
[312890524,1706419840095,-212.272603,0.00025563,2]
[312890525,1706419840105,-212.272603,0.00025563,2]
[312890526,1706419840114,-212.272603,0.00025563,2]
[312890528,1706419840125,-212.272603,0.00025563,2]
[312890530,1706419840135,-212.272603,0.00025563,2]
[312890532,1706419840146,-151.0,0.00025563,2]
[312890533,1706419840155,-151.0,0.00025563,2]
[312890534,1706419840164,-151.0,0.00025563,2]
[312890536,1706419840176,-153.096833,0.00025563,2]
[312890537,1706419840186,-50000.0,0.00025573,2]
[312890539,1706419840195,-151.0,0.00025573,2]
[312890541,1706419840204,-212.272603,0.00025573,2]
[312890543,1706419840214,-212.272603,0.00025573,2]
[312890545,1706419840223,-861.22223791,0.00025594,2]
[312890547,1706419840232,-368.1958136,0.000256,2]
[312890549,1706419840241,-155.7799273,0.000256,2]
[312890551,1706419840250,-307.4236735,0.000256,2]
[312890553,1706419840259,-384.9894508,0.000256,2]
[312890554,1706419840269,-199.4949389,0.000256,2]
[312890555,1706419840278,-159.47121562,0.00025631,2]
[312890558,1706419840493,-159.47121562,0.00025839,2]
[312890559,1706419840503,-199.4949389,0.00026027,2]
[312890560,1706419840513,-199.4949389,0.00026027,2]
[312890561,1706419840522,-153.0,0.00026027,2]
[312890562,1706419840530,-153.0,0.00026027,2]
[312890563,1706419840539,-153.0,0.00026027,2]
[312890564,1706419840548,-153.0,0.00026027,2]
[312890565,1706419840558,-153.0,0.00026027,2]
[312890566,1706419840567,-153.0,0.00026027,2]
[312890567,1706419840576,-153.0,0.00026027,2]
[312890568,1706419840585,-199.4949389,0.00026027,2]
[312890569,1706419840594,-153.0,0.00026078,2]
[312890570,1706419840603,-153.0,0.00026078,2]
[312890571,1706419840612,-153.0,0.00026078,2]
[312890572,1706419840622,-199.4949389,0.00026078,2]
[312890573,1706419840631,-169.37880225,0.00026166,2]
[312890574,1706419840641,-153.0,0.00026178,2]
[312890575,1706419840652,-153.0,0.00026178,2]
[312890576,1706419840661,-153.0,0.00026178,2]
[312890577,1706419840672,-153.0,0.00026178,2]
[312890578,1706419840681,-306.4864988,0.00026178,2]
[312890579,1706419840691,-199.4949389,0.00026178,2]
[312890580,1706419840700,-153.0,0.00026178,2]
[312890581,1706419840709,-153.0,0.00026178,2]
[312890582,1706419840718,-199.4949389,0.00026178,2]
[312890583,1706419840727,-153.0,0.00026178,2]
[312890584,1706419840737,-151.0,0.0002635,2]
[312890585,1706419840747,-199.631622,0.00026412,2]
[312890586,1706419840757,-166.760351,0.00026849,2]
[312890587,1706419840766,-212.272603,0.00026849,2]
[312890588,1706419840776,-212.272603,0.00026849,2]
[312890589,1706419840786,-212.272603,0.00026849,2]
[312890590,1706419840795,-212.272603,0.00026849,2]
[312890591,1706419840805,-212.272603,0.00026849,2]
[312890592,1706419840814,-212.272603,0.00026849,2]
[312890593,1706419840825,-199.4949389,0.00026849,2]
[312890594,1706419840834,-199.4949389,0.00026849,2]
[312890595,1706419840844,-199.4949389,0.00026849,2]
[312890596,1706419840855,-153.0,0.00026849,2]
[312890597,1706419840865,-199.4949389,0.00026849,2]
[312890598,1706419840875,-153.0,0.00026849,2]
[312890599,1706419840884,-199.4949389,0.00026849,2]
[312890600,1706419840893,-153.0,0.00026849,2]
[312890601,1706419840902,-199.4949389,0.00026849,2]
[312890602,1706419840912,-153.0,0.00026849,2]
[312890603,1706419840921,-192.5798257,0.00026849,2]
[312890604,1706419840932,-153.0,0.00026849,2]
[312890605,1706419840942,-153.0,0.00026849,2]
[312890606,1706419840951,-153.0,0.00026849,2]
[312890607,1706419840962,-153.9764062,0.00026849,2]
[312890608,1706419840971,-632.0611119,0.00026874,2]
[312890609,1706419840980,-169.37880225,0.00026899,2]
[312890610,1706419840990,-212.272603,0.00026935,2]
[312890611,1706419841000,-212.272603,0.00026935,2]
[312890612,1706419841009,-212.272603,0.0002699,2]
[312890613,1706419841018,-212.27259651,0.0002699,2]
[312890614,1706419841027,-200.89934999,0.00026997,2]
[312890615,1706419841036,-718.57756652,0.00026998,2]
[312890616,1706419841046,-1273.90861569,0.00026998,2]
[312890617,1706419841055,-317.80572276,0.00026998,2]
[312890618,1706419841064,-180.03392829,0.00026998,2]
[312890619,1706419841075,-4018.69495971,0.00026998,2]
[312890620,1706419841084,-9020.40472298,0.00026998,2]
[312890621,1706419841099,-929.99689759,0.00026998,2]
[312890622,1706419841108,-216.72968846,0.00026999,2]
[312890623,1706419841117,-9.91663575,0.00026999,2]
[312890820,1706421033550,-500.0,0.00022713,2]
[312890821,1706421033560,-155.0294556,0.00022714,4]
[312890822,1706421033570,-303.81437787,0.00022715,2]
[312890823,1706421033582,-185.556797,0.00022716,2]
[312890824,1706421033592,-1075.375837,0.00023,4]
[312890825,1706421033602,-311.9045846,0.00023127,2]
[312890827,1706421033614,-169.991462,0.00023261,2]
[312890829,1706421033623,-209.72704955,0.00023473,2]
[312890905,1706421043362,-1856.25502519,0.00022712,2]
[312890906,1706421043373,-238.67569197,0.00023473,2]
[312890907,1706421043383,-2161.59423324,0.00025,2]
[312891000,1706421745709,10000.0,0.0002,2]
[312891001,1706421762345,10000.0,0.0002,2]
[312891002,1706421828664,155.0310062,0.0002,2]
[312891003,1706421830342,343.44691055,0.0002,2]
[312891004,1706421830424,535.71086689,0.0002,2]
[312891005,1706421833222,155.0310062,0.0002,2]
[312891006,1706421834737,1311.00301218,0.0002,2]
[312891007,1706421841761,234.47285412,0.0002,2]
[312891008,1706421842501,1110.69036683,0.0002,2]
[312891009,1706421844827,155.0310062,0.0002,2]
[312891010,1706421844971,621.33248248,0.0002,2]
[312891011,1706421846362,343.44691055,0.0002,2]
[312891012,1706421846666,155.79766602,0.0002,2]
[312891013,1706421848159,155.0310062,0.0002,2]
[312891014,1706421849746,155.0310062,0.0002,2]
[312891015,1706421850445,535.71086689,0.0002,2]
[312891016,1706421851252,155.0310062,0.0002,2]
[312891017,1706421855793,234.47285412,0.0002,2]
[312891018,1706421858182,1856.25502519,0.00019999,2]
[312891019,1706421858741,683.03256935,0.0002,2]
[312891020,1706421860963,621.33248248,0.0002,2]
[312891021,1706421861001,1289.67593275,0.0002,2]
[312891022,1706421862517,1110.69036683,0.0002,2]
[312891023,1706421862822,227.6300247,0.0002,2]
[312891024,1706421863739,171.90191216,0.0002,2]
[312891025,1706421864347,343.16987428,0.0002,2]
[312891026,1706421865263,535.71086689,0.0002,2]
[312891027,1706421867258,155.0310062,0.0002,2]
[312891028,1706421868157,231.04934962,0.0002,2]
[312891029,1706421872747,683.03256935,0.0002,2]
[312891030,1706421875781,234.47285412,0.0002,2]
[312891031,1706421876965,1289.67593275,0.0002,2]
[312891032,1706421880959,236.92711796,0.0002,2]
[312891033,1706421881183,535.71086689,0.0002,2]
[312891034,1706421881223,202.15064746,0.0002,2]
[312891035,1706421882501,1101.22513354,0.0002,2]
[312891036,1706421889774,234.47285412,0.0002,2]
[312891037,1706421890734,683.03256935,0.0002,2]
[312891038,1706421896973,695.13012126,0.0002,2]
[312891039,1706421899178,585.71438692,0.0002,2]
[312891040,1706421906745,683.03256935,0.0002,2]
[312891041,1706421909770,217.98978535,0.0002,2]
[312891042,1706421924744,683.03256935,0.0002,2]
[312891049,1706421944736,683.03256935,0.0002,2]
[312891056,1706421962764,683.03256935,0.0002,2]
[312891062,1706421978752,683.03256935,0.0002,2]
[312891069,1706421992750,683.03256935,0.0002,2]
[312891076,1706422014748,683.03256935,0.0002,2]
[312891077,1706422032753,403.64783761,0.0002,2]
[312891140,1706422238615,-155.0310062,0.00020888,4]
[312891141,1706422238628,-500.0,0.00020889,2]
[312891142,1706422238640,-298.93516101,0.000209,2]
[312891143,1706422238653,-192.594209,0.00023271,2]
[312891144,1706422238667,-169.991462,0.00023531,2]
[312891145,1706422238678,-159.47121566,0.00024896,2]
[312891146,1706422238690,-169.37880226,0.00024898,2]
[312891147,1706422238702,-169.37880225,0.00024899,2]
[312891148,1706422238714,-169.37880225,0.00024899,2]
[312891149,1706422238727,-159.47121562,0.00024927,2]
[312891150,1706422238738,-159.47121562,0.00024958,2]
[312891151,1706422238750,-499.00501624,0.0002496,5]
[312891152,1706422238763,-15634.47127894,0.00024986,2]
[312891153,1706422238775,-7723.42,0.00024987,3]
[312891154,1706422238786,-6436.18,0.00024987,3]
[312891155,1706422238798,-9268.1,0.00024988,3]
[312891156,1706422238810,-159.47121562,0.00024988,2]
[312891157,1706422238822,-396.78146714,0.00024996,2]
[312891158,1706422238833,-5906.74823142,0.00024996,2]
[312891159,1706422238845,-231.63079063,0.00024996,2]
[312891160,1706422238857,-156.20898937,0.00024996,2]
[312891161,1706422238869,-2105.7958969,0.00024997,2]
[312891162,1706422238881,-1075.29743474,0.00024997,2]
[312891163,1706422238893,-28389.56,0.00024997,2]
[312891164,1706422238906,-500.0,0.00024997,2]
[312891165,1706422238918,-500.0,0.00024997,2]
[312891166,1706422238929,-2385.83,0.00024997,2]
[312891167,1706422238941,-500.0,0.00024997,2]
[312891168,1706422238953,-39574.96,0.00024997,2]
[312891169,1706422238964,-18074.88,0.00024997,2]
[312891170,1706422238976,-875.19,0.00024998,2]
[312891171,1706422238987,-1389.2,0.00024998,2]
[312891172,1706422238999,-510.55596455,0.00024998,2]
[312891173,1706422239011,-500.0,0.00024998,2]
[312891174,1706422239026,-2315.71,0.00024998,2]
[312891175,1706422239156,-11613.84,0.00024998,2]
[312891176,1706422239176,-500.0,0.00024998,2]
[312891177,1706422239187,-500.0,0.00024998,2]
[312891178,1706422239196,-2708.54,0.00024998,2]
[312891179,1706422239206,-2592.07,0.00024998,2]
[312891180,1706422239215,-500.0,0.00024998,2]
[312891181,1706422239224,-4918.92,0.00024998,2]
[312891182,1706422239233,-500.0,0.00024998,2]
[312891183,1706422239242,-3422.07,0.00024998,2]
[312891184,1706422239252,-810.01,0.00024998,2]
[312891185,1706422239261,-506.28658522,0.00024998,2]
[312891186,1706422239270,-529.15,0.00024998,2]
[312891187,1706422239279,-500.0,0.00024998,2]
[312891188,1706422239288,-500.0,0.00024998,2]
[312891189,1706422239297,-500.0,0.00024998,2]
[312891190,1706422239306,-2210.46,0.00024998,2]
[312891191,1706422239315,-12713.41,0.00024998,2]
[312891192,1706422239324,-12058.43,0.00024998,2]
[312891193,1706422239333,-16928.45,0.00024998,2]
[312891194,1706422239342,-3314.01,0.00024998,2]
[312891195,1706422239351,-500.0,0.00024998,2]
[312891196,1706422239361,-701.524239,0.00024998,2]
[312891197,1706422239370,-701.524239,0.00024998,2]
[312891198,1706422239379,-701.524239,0.00024998,2]
[312891199,1706422239388,-701.524239,0.00024998,2]
[312891200,1706422239398,-500.0,0.00024998,2]
[312891201,1706422239407,-500.0,0.00024998,2]
[312891202,1706422239417,-500.0,0.00024998,2]
[312891203,1706422239426,-500.0,0.00024998,2]
[312891204,1706422239436,-500.0,0.00024998,2]
[312891205,1706422239447,-500.0,0.00024998,2]
[312891206,1706422239458,-500.0,0.00024998,2]
[312891207,1706422239467,-500.0,0.00024998,2]
[312891208,1706422239477,-500.0,0.00024998,2]
[312891209,1706422239486,-500.0,0.00024998,2]
[312891210,1706422239495,-500.0,0.00024998,2]
[312891211,1706422239505,-500.0,0.00024998,2]
[312891212,1706422239514,-196.58601966,0.00024998,2]
[312891213,1706422239523,-500.0,0.00024998,2]
[312891214,1706422239532,-500.0,0.00024998,2]
[312891215,1706422239541,-425.31454102,0.00024998,2]
[312891216,1706422239550,-500.0,0.00024998,2]
[312891217,1706422239559,-156.35796755,0.00024998,2]
[312891218,1706422239568,-500.0,0.00024998,2]
[312891219,1706422239577,-500.0,0.00024998,2]
[312891220,1706422239586,-500.0,0.00024998,2]
[312891221,1706422239595,-500.0,0.00024998,2]
[312891222,1706422239605,-500.0,0.00024998,2]
[312891223,1706422239615,-500.0,0.00024998,2]
[312891224,1706422239624,-500.0,0.00024998,2]
[312891225,1706422239634,-500.0,0.00024998,2]
[312891226,1706422239644,-500.0,0.00024998,2]
[312891227,1706422239654,-500.0,0.00024998,2]
[312891228,1706422239664,-500.0,0.00024998,2]
[312891229,1706422239674,-616.36403893,0.00024998,2]
[312891230,1706422239683,-642.76099529,0.00024998,2]
[312891231,1706422239692,-500.0,0.00024998,2]
[312891232,1706422239701,-500.0,0.00024998,2]
[312891233,1706422239710,-500.0,0.00024998,2]
[312891234,1706422239719,-500.0,0.00024998,2]
[312891235,1706422239728,-500.0,0.00024998,2]
[312891236,1706422239738,-500.0,0.00024998,2]
[312891237,1706422239747,-500.0,0.00024998,2]
[312891238,1706422239758,-500.0,0.00024998,2]
[312891239,1706422239767,-370.22072581,0.00024998,2]
[312891240,1706422239777,-500.0,0.00024998,2]
[312891241,1706422239788,-500.0,0.00024998,2]
[312891242,1706422239798,-500.0,0.00024998,2]
[312891243,1706422239808,-500.0,0.00024998,2]
[312891244,1706422239820,-500.0,0.00024998,2]
[312891245,1706422239830,-500.0,0.00024998,2]